bitfinex-derivatives/quotes_SOLF0:USTF0_20260316
["timestamp","ask_amount","ask_price","bid_price","bid_amount"]
[1773661294093,19.81725608,93.769,93.722,13.15671606]
[1773661294393,19.81725608,93.769,93.721,46.75671606]
[1773661294798,19.81725608,93.769,93.721,33.6]
[1773661296196,19.81725608,93.769,93.73,3.63971061]
[1773661298693,19.81725608,93.769,93.721,46.75671606]
[1773661299296,19.81725608,93.769,93.722,13.15671606]
[1773661300093,19.81725608,93.769,93.73,3.63971061]
[1773661300897,19.80823486,93.809,93.76,3.63971061]
[1773661303900,19.80823486,93.809,93.77,3.63971061]
[1773661305104,19.80823486,93.809,93.76,3.63971061]
[1773661306203,19.79864297,93.799,93.751,13.15671606]
[1773661306399,19.79864297,93.789,93.737,13.15671606]
[1773661307208,19.79864297,93.789,93.74,3.63971061]
[1773661310612,19.79864297,93.789,93.73,3.63971061]
[1773661311011,19.81206136,93.779,93.73,3.63971061]
[1773661311205,19.81206136,93.779,93.722,277.31249928]
[1773661311206,19.81206136,93.779,93.723,13.15671606]
[1773661311413,19.81206136,93.769,93.722,264.15578322]
[1773661312409,19.81206136,93.769,93.73,3.63971061]
[1773661316015,19.81206136,93.769,93.74,3.63971061]
[1773661316204,19.80380913,93.799,93.75,3.63971061]
[1773661317107,19.80380913,93.799,93.74,3.63971061]
[1773661319612,19.82717023,93.789,93.73,3.63971061]
[1773661320016,19.82717023,93.779,93.73,3.63971061]
[1773661321211,3.63971061,93.77,93.725,13.15671606]
[1773661321409,19.82874759,93.769,93.722,264.15578322]
[1773661325820,19.82874759,93.769,93.73,3.63971061]
[1773661328923,19.82874759,93.769,93.73,3.63915703]
[1773661336430,19.82874759,93.769,93.725,13.15671606]
[1773661337432,19.83893876,93.817,93.728,13.15671606]
[1773661337643,19.179,93.839,93.75,3.63915703]
[1773661337644,19.85307512,93.799,93.75,3.63915703]
[1773661337938,19.85307512,93.799,93.751,33.6]
[1773661339031,19.84821819,93.789,93.751,33.6]
[1773661351439,19.183,93.819,93.722,264.15578322]
[1773661351440,19.83243388,93.779,93.726,33.58]
[1773661359549,19.83243388,93.779,93.73,3.63915703]
[1773661361445,19.83243388,93.779,93.735,13.15671606]
[1773661367146,19.83243388,93.779,93.736,13.15671606]
[1773661367938,19.83243388,93.779,93.742,13.15671606]
[1773661368139,19.83243388,93.779,93.744,13.15671606]
[1773661369240,19.83243388,93.779,93.743,13.15671606]
[1773661369443,19.83243388,93.779,93.735,13.15671606]
[1773661371247,19.83243388,93.779,93.736,13.15671606]
[1773661374451,19.83243388,93.779,93.744,13.15671606]
[1773661378153,19.83243388,93.779,93.743,13.15671606]
[1773661378953,19.83243388,93.779,93.744,13.15671606]
[1773661379153,19.83243388,93.779,93.743,13.15671606]
[1773661379655,19.83243388,93.779,93.744,13.15671606]
[1773661380056,19.83243388,93.779,93.743,13.15671606]
[1773661381554,19.83243388,93.779,93.744,13.15671606]
[1773661381752,19.78506341,93.799,93.76,3.63915703]
[1773661384459,19.78506341,93.799,93.757,33.58]
[1773661388062,19.78506341,93.799,93.75,3.63915703]
[1773661388762,19.78506341,93.799,93.745,33.58]
[1773661390658,3.63915703,93.79,93.745,33.58]
[1773661390961,19.79943534,93.789,93.745,33.58]
[1773661405775,19.79943534,93.789,93.75,3.63947102]
[1773661406080,19.78172889,93.8,93.75,3.63947102]
[1773661409181,23.42119991,93.8,93.745,33.58]
[1773661410286,23.42119991,93.8,93.747,13.15671606]
[1773661410587,19.78172889,93.8,93.747,13.15671606]
[1773661410783,19.78172889,93.8,93.75,3.63947102]
[1773661412485,23.42119991,93.8,93.75,3.63947102]
[1773661418288,23.42119991,93.8,93.745,33.58]
[1773661418491,19.87512913,93.789,93.745,33.58]
[1773661425294,3.63947102,93.78,93.745,33.58]
[1773661425501,19.87236856,93.779,93.745,33.58]
[1773661436006,23.50598761,93.79,93.733,13.15671606]
[1773661436307,23.50598761,93.79,93.741,13.15671606]
[1773661437108,23.50598761,93.79,93.74,3.63947102]
[1773661439910,23.50598761,93.79,93.737,13.15671606]
[1773661440914,19.182,93.821,93.719,33.58]
[1773661440915,19.8954134,93.779,93.733,13.15671606]
[1773661442211,19.8954134,93.779,93.732,13.15671606]
[1773661444508,19.8954134,93.779,93.728,13.15671606]
[1773661445313,19.8954134,93.779,93.73,3.63947102]
[1773661447621,19.8954134,93.779,93.74,3.63947102]
[1773661449023,19.8954134,93.779,93.731,13.15671606]
[1773661450123,19.8954134,93.779,93.735,13.15671606]
[1773661451318,19.8954134,93.779,93.733,13.15671606]
[1773661451518,19.8954134,93.779,93.719,33.58]
[1773661451519,19.8954134,93.779,93.731,13.15671606]
[1773661452021,19.8954134,93.779,93.72,3.6389151]
[1773661452022,19.8954134,93.779,93.727,13.15671606]
[1773661455125,19.8954134,93.779,93.726,13.15671606]
[1773661455327,19.8954134,93.779,93.729,13.15671606]
[1773661455825,19.8954134,93.779,93.731,13.15671606]
[1773661456525,19.8954134,93.779,93.729,13.15671606]
[1773661456726,19.8954134,93.779,93.72,3.6389151]
[1773661456727,19.8954134,93.779,93.731,13.15671606]
[1773661458230,19.8954134,93.779,93.732,13.15671606]
[1773661461328,19.8954134,93.779,93.733,13.15671606]
[1773661465126,19.9500545,93.769,93.729,13.15671606]
[1773661465331,19.9500545,93.769,93.722,13.15671606]
[1773661466227,19.9500545,93.769,93.72,3.6389151]
[1773661466228,19.9500545,93.769,93.721,13.15671606]
[1773661468135,19.9500545,93.769,93.72,16.79563116]
[1773661468833,19.9500545,93.769,93.72,13.15671606]
[1773661470137,19.9500545,93.769,93.73,3.6389151]
[1773661470836,19.97358918,93.789,93.731,13.15671606]
[1773661471035,19.97358918,93.789,93.73,3.6389151]
[1773661471036,19.97358918,93.789,93.73,16.79563116]
[1773661471231,19.97358918,93.789,93.731,13.15671606]
[1773661476234,19.97358918,93.789,93.74,3.6389151]
[1773661479234,19.97358918,93.789,93.735,13.15671606]
[1773661482939,19.97358918,93.789,93.736,13.15671606]
[1773661483138,19.97358918,93.789,93.735,13.15671606]
[1773661483340,19.97358918,93.789,93.736,13.15671606]
[1773661484142,19.97358918,93.789,93.735,13.15671606]
[1773661484443,19.97358918,93.789,93.74,13.15671606]
[1773661485340,19.97358918,93.789,93.739,13.15671606]
[1773661488437,19.97358918,93.789,93.738,13.15671606]
[1773661489339,19.96252856,93.809,93.76,3.6389151]
[1773661489551,19.96252856,93.809,93.77,3.6389151]
[1773661490036,19.96252856,93.809,93.76,3.6389151]
[1773661493651,19.96252856,93.809,93.77,3.6389151]
[1773661494450,19.96252856,93.809,93.76,3.6389151]
[1773661495549,3.6389151,93.8,93.757,33.94]
[1773661495743,19.96252856,93.809,93.757,33.94]
[1773661496450,19.94954666,93.82,93.78,3.6389151]
[1773661496841,19.94954666,93.82,93.77,3.6389151]
[1773661499456,19.94954666,93.82,93.78,3.6389151]
[1773661500845,19.94954666,93.82,93.79,3.6389151]
[1773661501861,19.94954666,93.82,93.757,33.94]
[1773661502052,19.94954666,93.82,93.77,3.6389151]
[1773661503661,19.94954666,93.82,93.78,3.6389151]
[1773661504756,19.94954666,93.82,93.79,3.6389151]
[1773661505157,19.97290852,93.849,93.79,3.6389151]
[1773661505356,19.97290852,93.849,93.757,33.94]
[1773661505357,19.97290852,93.849,93.8,3.6389151]
[1773661507860,11.80990419,93.897,93.757,33.94]
[1773661507861,19.97344863,93.869,93.82,3.6389151]
[1773661509057,19.97344863,93.869,93.83,3.6389151]
[1773661510761,19.97344863,93.869,93.83,3.63135846]
[1773661514165,19.97344863,93.869,93.784,19.19]
[1773661514466,19.97344863,93.869,93.82,3.63135846]
[1773661516072,19.97344863,93.869,93.83,3.63135846]
[1773661517666,19.97344863,93.869,93.81,3.63135846]
[1773661520168,19.97344863,93.869,93.83,3.63135846]
[1773661520371,19.97344863,93.869,93.82,3.63135846]
[1773661521671,19.90551937,93.859,93.81,3.63135846]
[1773661522373,19.90551937,93.859,93.82,3.63135846]
[1773661522565,19.90551937,93.859,93.786,19.189]
[1773661522566,19.90551937,93.859,93.83,3.63135846]
[1773661523976,19.90340045,93.872,93.83,3.63135846]
[1773661524469,19.90340045,93.872,93.84,3.63135846]
[1773661526076,19.90151037,93.888,93.84,3.63135846]
[1773661526376,19.90151037,93.888,93.85,3.63135846]
[1773661527381,19.90151037,93.888,93.84,3.63135846]
[1773661529579,19.90151037,93.888,93.805,19.185]
[1773661529780,19.90151037,93.888,93.84,3.63135846]
[1773661531081,177.36140619,93.927,93.792,13.15671606]
[1773661531082,3.63135846,93.9,93.85,3.63135846]
[1773661531382,19.88745492,93.901,93.85,3.63135846]
[1773661531573,19.88745492,93.901,93.86,3.63135846]
[1773661534077,19.88745492,93.901,93.825,19.181]
[1773661534378,19.88745492,93.901,93.85,3.63135846]
[1773661535784,19.83001872,93.889,93.825,19.181]
[1773661535986,19.83001872,93.889,93.83,3.63135846]
[1773661536189,19.83001872,93.879,93.83,3.63135846]
[1773661537787,19.83001872,93.879,93.85,3.63135846]
[1773661539591,19.90723888,93.899,93.85,3.63135846]
[1773661541194,19.90723888,93.899,93.86,3.63135846]
[1773661546902,19.90723888,93.899,93.85,3.63135846]
[1773661550507,19.79553224,93.958,93.875,13.15671606]
[1773661550803,19.79609807,93.939,93.88,3.63135846]
[1773661551004,19.79609807,93.939,93.881,33.6]
[1773661551403,3.63135846,93.92,93.881,33.6]
[1773661551604,19.79392798,93.909,93.881,33.6]
[1773661554705,19.79392798,93.909,93.852,33.62]
[1773661559202,177.86776242,93.975,93.852,33.62]
[1773661559203,19.8783242,93.899,93.852,33.62]
[1773661559805,19.88147769,93.889,93.852,33.62]
[1773661560806,19.87266184,93.879,93.852,33.62]
[1773661562108,3.74066184,93.879,93.852,33.62]
[1773661562311,3.63135846,93.88,93.852,33.62]
[1773661562605,3.63135846,93.87,93.852,2.2424566]
[1773661562807,3.63135846,93.87,93.826,13.15671606]
[1773661563006,3.63135846,93.87,93.827,3.88811534]
[1773661563203,3.63135846,93.87,93.828,3.88811534]
[1773661563707,3.63135846,93.88,93.828,3.88811534]
[1773661564213,0.11813505,93.879,93.829,3.88444087]
[1773661564914,0.11813505,93.879,93.83,3.63135846]
[1773661565112,0.11813505,93.879,93.831,3.90497162]
[1773661566712,0.13833169,93.869,93.831,3.90497162]
[1773661568509,0.20620078,93.879,93.831,3.90497162]
[1773661572920,0.3336777,93.869,93.822,50.7256344]
[1773661573217,0.3336777,93.869,93.823,3.90891834]
[1773661585831,0.37500753,93.859,93.823,3.90891834]
[1773661586029,0.37500753,93.859,93.822,33.66]
[1773661587330,0.49964255,93.849,93.822,33.66]
[1773661589034,0.49964255,93.849,93.8,4.01913362]
[1773661590130,19.167,93.896,93.8,4.01913362]
[1773661590131,0.57017825,93.839,93.8,4.01913362]
[1773661590534,0.57017825,93.829,93.799,34.7]
[1773661592538,0.67562516,93.853,93.8,3.98810285]
[1773661592732,176.26756128,93.875,93.799,34.7]
[1773661592733,0.69354145,93.859,93.811,3.97914471]
[1773661598941,176.26756128,93.875,93.811,3.97914471]
[1773661598942,0.80858311,93.849,93.811,3.97914471]
[1773661602643,3.63203232,93.85,93.811,3.97914471]
[1773661603345,0.91485071,93.859,93.811,3.97914471]
[1773661606347,4.55753145,93.87,93.811,3.97914471]
[1773661606547,0.92549913,93.869,93.811,3.97914471]
[1773661608050,0.92549913,93.869,93.821,4.00658801]
[1773661610241,176.26756128,93.875,93.841,4.04231542]
[1773661611253,0.92655606,93.882,93.841,4.04231542]
[1773661614453,0.90919837,93.879,93.841,4.04231542]
[1773661616061,0.90919837,93.879,93.829,4.4526408]
[1773661616357,1.00726506,93.869,93.829,4.4526408]
[1773661619860,1.00726506,93.869,93.817,4.4526408]
[1773661620156,1.00726506,93.869,93.751,32.0]
[1773661620157,1.13801952,93.889,93.831,4.4526408]
[1773661620659,1.13801952,93.889,93.84,3.63203232]
[1773661620863,1.13801952,93.889,93.841,4.4526408]
[1773661624568,1.11802918,93.879,93.821,4.4526408]
[1773661625263,1.13224276,93.869,93.821,4.4526408]
[1773661629366,3.63203232,93.86,93.821,4.4526408]
[1773661629563,1.2374903,93.86,93.821,4.4526408]
[1773661629865,3.63203232,93.87,93.821,4.4526408]
[1773661630072,1.25075186,93.869,93.821,4.4526408]
[1773661630463,1.25075186,93.859,93.821,4.4526408]
[1773661630968,3.63203232,93.84,93.797,4.4526408]
[1773661631371,1.26698835,93.849,93.8,3.63203232]
[1773661631571,1.26698835,93.849,93.801,4.4526408]
[1773661632472,3.63203232,93.85,93.801,4.4526408]
[1773661632676,1.28360374,93.861,93.811,4.4526408]
[1773661632872,3.63203232,93.87,93.811,4.4526408]
[1773661633676,3.63203232,93.87,93.821,4.4526408]
[1773661634776,3.63238236,93.87,93.821,4.4526408]
[1773661635373,1.37717102,93.869,93.821,4.4526408]
[1773661635677,3.63238236,93.86,93.821,4.4526408]
[1773661637081,5.03687533,93.86,93.821,4.4526408]
[1773661637279,1.40449297,93.859,93.821,4.4526408]
[1773661639385,3.63238236,93.86,93.821,4.4526408]
[1773661641380,1.40755491,93.873,93.821,4.4526408]
[1773661641585,1.35403451,93.869,93.821,4.4526408]
[1773661643590,4.89309019,93.86,93.821,4.4526408]
[1773661645885,1.29199366,93.869,93.821,4.4526408]
[1773661646189,19.166,93.898,93.791,19.93477988]
[1773661646190,1.29199366,93.859,93.805,13.15671606]
[1773661646387,4.92437602,93.85,93.806,4.39877507]
[1773661646690,3.63238236,93.84,93.806,4.39877507]
[1773661648186,3.63238236,93.85,93.806,4.39877507]
[1773661654695,3.63238236,93.86,93.806,4.39877507]
[1773661655096,5.13390174,93.86,93.806,4.39877507]
[1773661655294,1.50151938,93.849,93.806,4.39877507]
[1773661658495,3.63238236,93.84,93.806,4.39877507]
[1773661661303,1.50151938,93.849,93.806,4.39877507]
[1773661664103,3.63238236,93.86,93.806,4.39877507]
[1773661664301,183.04318722,93.867,93.821,4.39877507]
[1773661664606,3.63238236,93.88,93.831,4.39877507]
[1773661664801,1.63907372,93.882,93.831,4.39877507]
[1773661665899,3.63238236,93.88,93.831,4.39877507]
[1773661673807,1.63907372,93.882,93.831,4.39877507]
[1773661674110,3.63238236,93.87,93.831,4.39877507]
[1773661674310,1.58094138,93.869,93.831,4.39877507]
[1773661674504,3.63238236,93.86,93.831,4.39877507]
[1773661674701,3.63238236,93.86,93.814,13.27119571]
[1773661674906,1.61397221,93.859,93.815,4.51873837]
[1773661687016,1.76729223,93.849,93.815,4.51873837]
[1773661688315,1.77294144,93.878,93.821,4.51873837]
[1773661691518,3.63238236,93.87,93.821,4.51873837]
[1773661691718,5.40285027,93.87,93.821,4.51873837]
[1773661693022,3.63238236,93.88,93.821,4.51873837]
[1773661693923,1.78276114,93.879,93.821,4.51873837]
[1773661694527,3.63238236,93.87,93.821,4.51873837]
[1773661694918,3.63240445,93.87,93.821,4.51873837]
[1773661695228,1.79152982,93.869,93.821,4.51873837]
[1773661695527,3.63240445,93.86,93.821,4.51873837]
[1773661696125,1.79152982,93.869,93.821,4.51873837]
[1773661710132,3.63240445,93.89,93.841,4.74603388]
[1773661710632,1.76554298,93.898,93.841,4.74603388]
[1773661711021,1.77163536,93.909,93.851,4.74603388]
[1773661711934,3.63240445,93.9,93.851,4.74603388]
[1773661717539,5.49753166,93.9,93.851,4.74603388]
[1773661717940,1.87036513,93.899,93.851,4.74603388]
[1773661721648,1.89082677,93.889,93.851,4.74603388]
[1773661722043,5.50521366,93.88,93.832,4.74603388]
[1773661724149,1.87280921,93.88,93.832,4.74603388]
[1773661724652,1.93811606,93.879,93.832,4.74603388]
[1773661726250,1.94613481,93.869,93.832,4.74603388]
[1773661726444,3.63240445,93.86,93.819,4.74603388]
[1773661731051,1.94613481,93.869,93.819,4.74603388]
[1773661735156,3.63240445,93.86,93.819,4.74603388]
[1773661735356,1.95315043,93.859,93.819,4.74603388]
[1773661750173,1.95315043,93.859,93.811,4.86190098]
[1773661758877,2.22529939,93.869,93.821,4.86190098]
[1773661759569,2.22529939,93.869,93.83,3.63262418]
[1773661759775,2.22529939,93.869,93.831,4.86190098]
[1773661766584,3.63262418,93.88,93.831,4.86190098]
[1773661766783,2.26075294,93.879,93.831,4.86190098]
[1773661768588,2.19817181,93.899,93.841,4.78933709]
[1773661769687,2.19817181,93.899,93.851,4.78933709]
[1773661769990,2.19817181,93.899,93.861,4.78933709]
[1773661775096,2.18011833,93.909,93.861,4.78933709]
[1773661781698,5.81679105,93.89,93.85,4.78933709]
[1773661787811,2.11899192,93.889,93.85,4.78933709]
[1773661796507,2.11899192,93.889,93.837,4.97835337]
[1773661796711,2.11899192,93.889,93.667,106.744]
[1773661796712,3.63262418,93.86,93.823,4.97835337]
[1773661796909,3.63262418,93.86,93.773,26.54239143]
[1773661796910,3.63262418,93.84,93.806,4.97835337]
[1773661797211,3.63262418,93.85,93.806,4.97835337]
[1773661800620,1.87847648,93.849,93.806,4.97835337]
[1773661805617,1.87847648,93.849,93.793,13.27119571]
[1773661805618,1.90690057,93.839,93.795,4.97835337]
[1773661806722,1.90690057,93.839,93.783,4.97835337]
[1773661806923,3.63262418,93.81,93.783,4.97835337]
[1773661808024,1.9346189,93.819,93.783,4.97835337]
[1773661809027,1.8025704,93.841,93.783,4.97835337]
[1773661809222,3.63262418,93.83,93.783,4.97835337]
[1773661809423,3.63262418,93.84,93.791,4.97835337]
[1773661809827,5.42720409,93.85,93.791,4.97835337]
[1773661810022,1.79457991,93.849,93.791,4.97835337]
[1773661810227,3.63262418,93.84,93.791,4.97835337]
[1773661810828,1.79457991,93.849,93.801,4.97835337]
[1773661811431,3.63262418,93.84,93.801,4.97835337]
[1773661815223,3.63262418,93.83,93.801,4.97835337]
[1773661815432,3.63262418,93.82,93.771,4.97835337]
[1773661815832,3.63262418,93.81,93.771,4.97835337]
[1773661816932,3.63669731,93.81,93.771,4.97835337]
[1773661817837,1.81330416,93.819,93.771,4.97835337]
[1773661819037,3.63669731,93.81,93.771,4.97835337]
[1773661825343,19.173,93.865,93.771,4.97835337]
[1773661825344,3.63669731,93.82,93.771,4.97835337]
[1773661826237,3.63669731,93.83,93.771,4.97835337]
[1773661827840,5.21090035,93.83,93.771,4.97835337]
[1773661829242,1.57650135,93.829,93.771,4.97835337]
[1773661835640,1.65571019,93.872,93.791,5.14210008]
[1773661835840,1.66276416,93.849,93.791,5.14210008]
[1773661837940,1.66276416,93.849,93.801,5.14210008]
[1773661838742,5.27312588,93.86,93.801,5.14210008]
[1773661838951,1.63642857,93.859,93.801,5.14210008]
[1773661841538,1.63642857,93.859,93.811,5.14210008]
[1773661848357,1.67584301,93.869,93.811,5.14210008]
[1773661848750,1.67584301,93.869,93.821,5.14210008]
[1773661850351,1.67584301,93.869,93.831,5.14210008]
[1773661852355,33.56,93.911,93.831,5.14210008]
[1773661852356,1.66224948,93.888,93.831,5.14210008]
[1773661852655,3.63669731,93.88,93.831,5.14210008]
[1773661852853,5.35483051,93.88,93.831,5.14210008]
[1773661853053,1.71731304,93.879,93.831,5.14210008]
[1773661855559,3.63669731,93.89,93.841,4.89030339]
[1773661855852,1.67866882,93.888,93.841,4.89030339]
[1773661856060,1.67787826,93.879,93.841,4.89030339]
[1773661856350,1.67787826,93.879,93.82,3.63669731]
[1773661856351,1.67787826,93.879,93.821,4.89030339]
[1773661856746,3.63669731,93.86,93.821,4.89030339]
[1773661857052,1.74215335,93.869,93.821,4.89030339]
[1773661860759,1.76278056,93.859,93.821,4.89030339]
[1773661864359,1.714215,93.849,93.801,4.89030339]
[1773661865261,3.63669731,93.86,93.801,4.89030339]
[1773661865463,1.71332532,93.868,93.811,4.89030339]
[1773661866262,3.63669731,93.86,93.811,4.89030339]
[1773661873966,1.71332532,93.868,93.811,4.89030339]
[1773661875868,3.63669731,93.87,93.821,4.89030339]
[1773661876070,1.68899197,93.869,93.821,4.89030339]
[1773661876370,3.63669731,93.84,93.809,4.89030339]
[1773661876565,3.63669731,93.86,93.809,4.89030339]
[1773661876761,3.63297267,93.86,93.809,4.89030339]
[1773661879275,1.73437039,93.859,93.809,4.89030339]
[1773661879868,33.56,93.905,93.809,4.89030339]
[1773661879869,3.63297267,93.84,93.809,4.89030339]
[1773661880063,1.73269058,93.829,93.794,13.23850434]
[1773661880371,1.73269058,93.829,93.785,4.89030339]
[1773661880372,3.63297267,93.81,93.785,4.89030339]
[1773661881272,3.63297267,93.82,93.785,4.89030339]
[1773661882071,1.73269058,93.829,93.785,4.89030339]
[1773661882272,3.63297267,93.83,93.785,4.89030339]
[1773661882571,3.63297267,93.82,93.785,4.89030339]
[1773661885770,5.34060296,93.82,93.785,4.89030339]
[1773661888277,1.70592047,93.819,93.785,4.89030339]
[1773661889675,1.70592047,93.819,93.77,3.63297267]
[1773661889676,1.70592047,93.819,93.771,4.82946693]
[1773661896090,3.63297267,93.83,93.771,4.82946693]
[1773661899289,1.62918486,93.829,93.771,4.82946693]
[1773661902792,1.63222192,93.819,93.771,4.82946693]
[1773661904596,3.63297267,93.82,93.771,4.82946693]
[1773661904796,1.63055378,93.827,93.771,4.82946693]
[1773661907593,3.63297267,93.82,93.771,4.82946693]
[1773661908098,1.63055378,93.827,93.781,4.82946693]
[1773661920107,3.63297267,93.83,93.781,4.82946693]
[1773661920108,1.75742647,93.819,93.781,4.82946693]
[1773661921199,1.75742647,93.819,93.781,4.80946693]
[1773661922599,1.79049152,93.799,93.749,234.85951659]
[1773661923104,1.79049152,93.799,93.74,23.49681171]
[1773661923299,1.79049152,93.799,93.755,4.92900045]
[1773661935613,1.7904905,93.819,93.761,4.92900045]
[1773661936611,3.63297267,93.81,93.761,4.92900045]
[1773661937620,1.77407462,93.809,93.761,4.92900045]
[1773661940324,1.75975368,93.799,93.761,4.92900045]
[1773661940517,3.63757672,93.8,93.761,4.92900045]
[1773661940919,5.41274161,93.8,93.761,4.92900045]
[1773661941118,1.77516489,93.799,93.761,4.92900045]
[1773661941320,3.63757672,93.79,93.761,4.92900045]
[1773661941618,3.63757672,93.79,93.738,4.92900045]
[1773661941824,17.81608774,93.835,93.738,4.92900045]
[1773661941825,3.63757672,93.78,93.738,4.92900045]
[1773661942027,1.77516489,93.789,93.738,4.92900045]
[1773661942618,3.63757672,93.79,93.74,3.63757672]
[1773661942815,3.63757672,93.8,93.741,4.76424854]
[1773661945125,1.7736638,93.799,93.741,4.76424854]
[1773661945326,3.63757672,93.79,93.741,4.76424854]
[1773661946524,1.78480475,93.789,93.741,4.76424854]
[1773661947018,3.63757672,93.78,93.741,4.76424854]
[1773661950122,1.78480475,93.789,93.741,4.76424854]
[1773661951123,1.76255597,93.779,93.741,4.76424854]
[1773661951328,1.74255597,93.779,93.741,4.76424854]
[1773661952429,3.63757672,93.79,93.741,4.76424854]
[1773661955032,1.74970218,93.792,93.741,4.76424854]
[1773661955330,3.63757672,93.8,93.741,4.76424854]
[1773661955730,5.38352519,93.8,93.741,4.76424854]
[1773661956129,1.74541247,93.799,93.741,4.76424854]
[1773661959534,1.74541247,93.799,93.743,4.76424854]
[1773661967642,1.94578534,93.811,93.761,4.76424854]
[1773661968243,3.63757672,93.81,93.761,4.76424854]
[1773661969939,1.97833614,93.809,93.761,4.76424854]
[1773661970143,1.97812977,93.799,93.761,4.76424854]
[1773661976849,1.97617873,93.809,93.761,4.76424854]
[1773661987454,2.0691532,93.799,93.761,4.76424854]
[1773661988853,2.0691532,93.799,93.743,4.84697048]
[1773661989049,5.6988643,93.78,93.743,4.84697048]
[1773661990254,2.06128758,93.78,93.743,4.84697048]
[1773662000765,2.15763782,93.779,93.743,4.84697048]
[1773662004166,3.63955108,93.79,93.743,4.84697048]
[1773662004768,5.79770607,93.79,93.743,4.84697048]
[1773662005070,2.15799912,93.789,93.743,4.84697048]
[1773662011974,2.21932723,93.779,93.743,4.84697048]
[1773662012177,2.21921069,93.759,93.718,4.98114338]
[1773662017389,6.22934877,93.74,93.714,34.78]
[1773662017978,2.58979769,93.74,93.714,34.78]
[1773662018877,3.63955108,93.73,93.691,4.98114338]
[1773662019886,2.60711878,93.752,93.691,4.98114338]
[1773662020089,3.63955108,93.75,93.701,4.98114338]
[1773662020887,10.66,93.812,93.687,34.98]
[1773662020888,2.2983862,93.766,93.711,4.98114338]
[1773662021590,3.63955108,93.76,93.711,4.98114338]
[1773662027500,2.32862675,93.749,93.711,4.98114338]
[1773662031001,2.23906377,93.739,93.697,4.98114338]
[1773662032397,3.63955108,93.74,93.697,4.98114338]
[1773662032797,5.86046225,93.75,93.697,4.98114338]
[1773662033400,2.22109054,93.749,93.697,4.98114338]
[1773662039703,2.22109054,93.749,93.7,3.63955108]
[1773662039908,3.63955108,93.76,93.701,4.80774001]
[1773662040102,5.90156083,93.76,93.701,4.80774001]
[1773662040302,2.26191144,93.759,93.701,4.80774001]
[1773662056317,3.63955108,93.75,93.701,4.80774001]
[1773662059322,2.26191144,93.759,93.701,4.80774001]
[1773662071332,3.64145478,93.75,93.701,4.80774001]
[1773662071836,2.36562864,93.749,93.701,4.80774001]
[1773662072035,2.36562864,93.739,93.701,4.80774001]
[1773662072738,2.36552504,93.719,93.688,4.94296202]
[1773662074139,2.38170131,93.758,93.688,4.94296202]
[1773662074333,6.02315609,93.74,93.688,4.94296202]
[1773662074536,2.38170131,93.739,93.688,4.94296202]
[1773662075240,3.64145478,93.73,93.688,4.94296202]
[1773662076530,5.95400799,93.73,93.688,4.94296202]
[1773662077038,2.28721057,93.729,93.688,4.94296202]
[1773662077236,5.9285945,93.72,93.688,4.94296202]
[1773662077437,3.64145478,93.71,93.677,4.94296202]
[1773662078538,2.28713972,93.719,93.677,4.94296202]
[1773662086442,3.64145478,93.72,93.677,4.94296202]
[1773662086844,5.85733069,93.72,93.677,4.94296202]
[1773662087147,2.21580719,93.719,93.677,4.94296202]
[1773662088044,2.21570216,93.747,93.677,4.94296202]
[1773662088347,33.58,93.749,93.681,4.94296202]
[1773662088348,2.21570216,93.739,93.681,4.94296202]
[1773662089946,2.21570216,93.739,93.69,3.64145478]
[1773662090151,2.21570216,93.739,93.691,4.94296202]
[1773662096454,2.09690093,93.75,93.701,4.64806379]
[1773662096659,2.09690093,93.761,93.711,4.64806379]
[1773662097259,2.09547428,93.769,93.721,4.64806379]
[1773662097452,2.09547428,93.759,93.721,4.64806379]
[1773662097648,2.09547428,93.749,93.701,4.64806379]
[1773662098158,2.06346726,93.761,93.711,4.64806379]
[1773662099155,3.64145478,93.76,93.711,4.64806379]
[1773662099354,2.11256019,93.759,93.711,4.64806379]
[1773662101864,5.79169776,93.74,93.691,4.64806379]
[1773662102062,7.99615409,93.773,93.691,4.64806379]
[1773662102063,3.64145478,93.73,93.691,4.64806379]
[1773662104462,2.15024298,93.739,93.691,4.64806379]
[1773662107261,3.64145478,93.75,93.691,4.64806379]
[1773662107566,3.64145478,93.75,93.701,4.64806379]
[1773662107966,2.06437036,93.757,93.701,4.64806379]
[1773662108464,2.06437036,93.757,93.711,4.64806379]
[1773662109562,3.64145478,93.75,93.711,4.64806379]
[1773662110666,2.04104816,93.749,93.711,4.64806379]
[1773662112369,3.64145478,93.74,93.711,4.64806379]
[1773662113069,2.04104816,93.749,93.711,4.64806379]
[1773662119874,3.64145478,93.74,93.711,4.64806379]
[1773662121276,3.64145478,93.76,93.711,4.64806379]
[1773662121770,5.69342094,93.76,93.711,4.64806379]
[1773662122075,3.64145478,93.75,93.711,4.64806379]
[1773662122870,3.64173316,93.75,93.711,4.64806379]
[1773662123572,2.07311334,93.769,93.731,4.73616624]
[1773662124077,3.64173316,93.76,93.731,4.73616624]
[1773662124276,3.64173316,93.75,93.716,4.73616624]
[1773662125077,3.64173316,93.74,93.716,4.73616624]